[Event "Titled Tuesday Blitz May 30 Early 2023"]
[White "Jakubowski, Krzysztof"]
[Black "Simonian, Hrair"]
[WhiteFideId "1112848"]
[BlackFideId "13302337"]
[WhiteElo "2359"]
[BlackElo "2447"]
[Result "0-1"]
[Round "10"]
[TimeControl "180+2"]
[Date "2023.05.30"]
[WhiteClock "0:01:40"]
[BlackClock "0:01:36"]

1. c4 {[%clk 0:02:55]}  e5 {[%clk 0:02:58]} 2. Nc3 {[%clk 0:02:54]}  Bb4 {[%clk 0:02:56]} 3. g3 {[%clk 0:02:52]}  Bxc3 {[%clk 0:02:55]} 4. bxc3 {[%clk 0:02:53]}  d6 {[%clk 0:02:54]} 5. Bg2 {[%clk 0:02:53]}  Ne7 {[%clk 0:02:53]} 6. Rb1 {[%clk 0:02:53]}  Nbc6 {[%clk 0:02:52]} 7. d3 {[%clk 0:02:47]}  b6 {[%clk 0:02:49]} 8. e4 {[%clk 0:02:45]}  Bd7 {[%clk 0:02:47]} 9. Ne2 {[%clk 0:02:44]}  Qc8 {[%clk 0:02:45]} 10. O-O {[%clk 0:02:44]}  Bh3 {[%clk 0:02:44]} 11. f4 {[%clk 0:02:44]}  Bxg2 {[%clk 0:02:42]} 12. Kxg2 {[%clk 0:02:44]}  exf4 {[%clk 0:02:41]} 13. gxf4 {[%clk 0:02:42]}  f5 {[%clk 0:02:39]} 14. Ng3 {[%clk 0:02:40]}  O-O {[%clk 0:02:38]} 15. Rb2 {[%clk 0:02:29]}  Qd7 {[%clk 0:02:34]} 16. Re2 {[%clk 0:02:26]}  fxe4 {[%clk 0:02:29]} 17. dxe4 {[%clk 0:02:25]}  Qe6 {[%clk 0:02:13]} 18. Kh1 {[%clk 0:02:20]}  Qxc4 {[%clk 0:02:10]} 19. Rg2 {[%clk 0:02:20]}  Rf7 {[%clk 0:02:01]} 20. f5 {[%clk 0:02:16]}  Ne5 {[%clk 0:01:58]} 21. Rf4 {[%clk 0:02:05]}  Raf8 {[%clk 0:01:56]} 22. Qg1 {[%clk 0:02:05]}  N7g6 {[%clk 0:01:49]} 23. Nh5 {[%clk 0:01:57]}  Nxf4 {[%clk 0:01:44]} 24. Rxg7+ {[%clk 0:01:49]}  Kh8 {[%clk 0:01:44]} 25. Nxf4 {[%clk 0:01:40]}  Rxg7 {[%clk 0:01:36]} 0-1


[Site "https://www.chess.com"]

[Event "Titled Tuesday Blitz May 30 Early 2023"]
[White "Al-Tarboush, Ward"]
[Black "Herrera Reyes, Jose Antonio"]
[WhiteFideId "7601450"]
[BlackFideId "2274914"]
[WhiteElo "2265"]
[BlackElo "2272"]
[Result "0-1"]
[Round "10"]
[TimeControl "180+2"]
[Date "2023.05.30"]
[WhiteClock "0:02:01"]
[BlackClock "0:02:14"]

1. d4 {[%clk 0:03:00]}  Nf6 {[%clk 0:02:58]} 2. Nc3 {[%clk 0:03:01]}  c5 {[%clk 0:02:58]} 3. d5 {[%clk 0:03:00]}  g6 {[%clk 0:02:58]} 4. e4 {[%clk 0:03:01]}  Bg7 {[%clk 0:02:58]} 5. e5 {[%clk 0:02:56]}  Ng8 {[%clk 0:02:58]} 6. Nf3 {[%clk 0:02:51]}  d6 {[%clk 0:02:56]} 7. Bb5+ {[%clk 0:02:51]}  Bd7 {[%clk 0:02:55]} 8. e6 {[%clk 0:02:52]}  fxe6 {[%clk 0:02:55]} 9. dxe6 {[%clk 0:02:46]}  Bxc3+ {[%clk 0:02:54]} 10. bxc3 {[%clk 0:02:42]}  Bxb5 {[%clk 0:02:54]} 11. Ng5 {[%clk 0:02:40]}  Nh6 {[%clk 0:02:49]} 12. Ne4 {[%clk 0:02:40]}  Nf5 {[%clk 0:02:26]} 13. c4 {[%clk 0:02:18]}  Bxc4 {[%clk 0:02:24]} 14. Bb2 {[%clk 0:02:18]}  O-O {[%clk 0:02:24]} 15. Qd2 {[%clk 0:02:12]}  Nc6 {[%clk 0:02:20]} 16. Qc3 {[%clk 0:02:01]}  Qa5 {[%clk 0:02:14]} 0-1


[Site "https://www.chess.com"]

[Event "Titled Tuesday Blitz May 30 Early 2023"]
[White "Molina, Roberto Junio Brito"]
[Black "Miranda, Rafael"]
[WhiteFideId "2109450"]
[BlackFideId "130990"]
[WhiteElo "2376"]
[BlackElo "2204"]
[Result "0-1"]
[Round "10"]
[TimeControl "180+2"]
[Date "2023.05.30"]
[WhiteClock "0:00:00"]
[BlackClock "0:00:26"]

1. e4 {[%clk 0:02:58]}  e5 {[%clk 0:03:00]} 2. Nf3 {[%clk 0:02:58]}  Nc6 {[%clk 0:03:00]} 3. Bb5 {[%clk 0:02:57]}  g6 {[%clk 0:03:01]} 4. O-O {[%clk 0:02:57]}  Bg7 {[%clk 0:03:01]} 5. c3 {[%clk 0:02:56]}  Nge7 {[%clk 0:03:01]} 6. d4 {[%clk 0:02:55]}  exd4 {[%clk 0:03:02]} 7. cxd4 {[%clk 0:02:56]}  d5 {[%clk 0:03:02]} 8. exd5 {[%clk 0:02:56]}  Nxd5 {[%clk 0:03:02]} 9. Re1+ {[%clk 0:02:53]}  Be6 {[%clk 0:03:03]} 10. Bg5 {[%clk 0:02:53]}  Qd6 {[%clk 0:03:00]} 11. Nc3 {[%clk 0:02:50]}  O-O {[%clk 0:02:59]} 12. Rc1 {[%clk 0:02:43]}  Bg4 {[%clk 0:02:13]} 13. Bxc6 {[%clk 0:02:17]}  bxc6 {[%clk 0:02:09]} 14. h3 {[%clk 0:02:11]}  Bxf3 {[%clk 0:01:47]} 15. Qxf3 {[%clk 0:02:11]}  Bxd4 {[%clk 0:01:46]} 16. Ne4 {[%clk 0:02:08]}  Qb4 {[%clk 0:01:41]} 17. b3 {[%clk 0:01:55]}  f5 {[%clk 0:01:36]} 18. Ng3 {[%clk 0:01:47]}  Qd6 {[%clk 0:01:33]} 19. Red1 {[%clk 0:01:45]}  c5 {[%clk 0:01:33]} 20. Ne2 {[%clk 0:01:44]}  Rfe8 {[%clk 0:01:24]} 21. Nxd4 {[%clk 0:01:41]}  cxd4 {[%clk 0:01:25]} 22. Rxd4 {[%clk 0:01:42]}  c6 {[%clk 0:01:25]} 23. Rdc4 {[%clk 0:01:33]}  Rac8 {[%clk 0:01:25]} 24. g3 {[%clk 0:01:25]}  Qe6 {[%clk 0:01:24]} 25. Kg2 {[%clk 0:01:12]}  a6 {[%clk 0:01:21]} 26. R4c2 {[%clk 0:01:06]}  Nb4 {[%clk 0:01:17]} 27. Rd2 {[%clk 0:01:03]}  c5 {[%clk 0:01:15]} 28. Be3 {[%clk 0:01:00]}  c4 {[%clk 0:01:14]} 29. bxc4 {[%clk 0:00:51]}  Rxc4 {[%clk 0:01:13]} 30. Rcd1 {[%clk 0:00:48]}  Nc2 {[%clk 0:01:02]} 31. Rd3 {[%clk 0:00:38]}  Re4 {[%clk 0:00:58]} 32. Bd2 {[%clk 0:00:37]}  Qxa2 {[%clk 0:00:54]} 33. Rc1 {[%clk 0:00:36]}  Nd4 {[%clk 0:00:48]} 34. Qd1 {[%clk 0:00:36]}  Qd5 {[%clk 0:00:44]} 35. Kh2 {[%clk 0:00:35]}  Re2 {[%clk 0:00:41]} 36. Be3 {[%clk 0:00:01]}  R8xe3 {[%clk 0:00:39]} 37. Rc8+ {[%clk 0:00:01]}  Kg7 {[%clk 0:00:29]} 38. Rc7+ {[%clk 0:00:00]}  Kh6 {[%clk 0:00:26]} 0-1


[Site "https://www.chess.com"]

[Event "Titled Tuesday Blitz May 30 Early 2023"]
[White "Boyer, Mahel"]
[Black "Bodnaruk, Anastasia"]
[WhiteFideId "45102422"]
[BlackFideId "4181751"]
[WhiteElo "2439"]
[BlackElo "2304"]
[Result "0-1"]
[Round "10"]
[TimeControl "180+2"]
[Date "2023.05.30"]
[WhiteClock "0:00:17"]
[BlackClock "0:00:59"]

1. d4 {[%clk 0:02:41]}  Nf6 {[%clk 0:02:59]} 2. Nf3 {[%clk 0:02:41]}  g6 {[%clk 0:03:00]} 3. Bf4 {[%clk 0:02:38]}  Bg7 {[%clk 0:03:00]} 4. h3 {[%clk 0:02:33]}  O-O {[%clk 0:02:59]} 5. Nbd2 {[%clk 0:02:34]}  d5 {[%clk 0:03:00]} 6. e3 {[%clk 0:02:33]}  c5 {[%clk 0:02:55]} 7. c3 {[%clk 0:02:26]}  b6 {[%clk 0:02:53]} 8. a4 {[%clk 0:02:25]}  Nc6 {[%clk 0:02:52]} 9. Bb5 {[%clk 0:02:23]}  Bb7 {[%clk 0:02:52]} 10. O-O {[%clk 0:02:23]}  a6 {[%clk 0:02:38]} 11. Bd3 {[%clk 0:02:19]}  c4 {[%clk 0:02:31]} 12. Bc2 {[%clk 0:02:19]}  b5 {[%clk 0:02:30]} 13. Ne5 {[%clk 0:02:19]}  Nd7 {[%clk 0:02:20]} 14. Nxd7 {[%clk 0:02:10]}  Qxd7 {[%clk 0:02:20]} 15. e4 {[%clk 0:02:11]}  e5 {[%clk 0:02:08]} 16. exd5 {[%clk 0:02:06]}  Nxd4 {[%clk 0:01:57]} 17. Bxe5 {[%clk 0:01:18]}  Nxc2 {[%clk 0:01:37]} 18. Bxg7 {[%clk 0:01:15]}  Qxd5 {[%clk 0:01:38]} 19. f3 {[%clk 0:00:32]}  Ne3 {[%clk 0:01:32]} 20. Qe2 {[%clk 0:00:21]}  Nxf1 {[%clk 0:01:31]} 21. Bxf8 {[%clk 0:00:21]}  Nxd2 {[%clk 0:01:27]} 22. Bh6 {[%clk 0:00:20]}  Nb3 {[%clk 0:01:23]} 23. Re1 {[%clk 0:00:17]}  Bc6 {[%clk 0:01:21]} 24. Rd1 {[%clk 0:00:17]}  Qh5 {[%clk 0:01:12]} 25. Qe3 {[%clk 0:00:17]}  Qc5 {[%clk 0:01:09]} 26. Qxc5 {[%clk 0:00:13]}  Nxc5 {[%clk 0:01:09]} 27. Rd6 {[%clk 0:00:14]}  Rc8 {[%clk 0:01:07]} 28. Be3 {[%clk 0:00:13]}  Nxa4 {[%clk 0:01:06]} 29. Bd4 {[%clk 0:00:11]}  Nxb2 {[%clk 0:01:06]} 30. Bf6 {[%clk 0:00:12]}  a5 {[%clk 0:01:04]} 31. Rd2 {[%clk 0:00:12]}  Nd3 {[%clk 0:01:03]} 32. Ra2 {[%clk 0:00:13]}  a4 {[%clk 0:01:04]} 33. Bd4 {[%clk 0:00:14]}  b4 {[%clk 0:01:02]} 34. Ra3 {[%clk 0:00:15]}  bxa3 {[%clk 0:01:02]} 35. Kh2 {[%clk 0:00:15]}  a2 {[%clk 0:01:02]} 36. Kg3 {[%clk 0:00:16]}  a1=Q {[%clk 0:01:02]} 37. Kh4 {[%clk 0:00:17]}  Qe1+ {[%clk 0:01:02]} 38. Kg5 {[%clk 0:00:17]}  Qg3+ {[%clk 0:00:59]} 39. Kh6 {[%clk 0:00:17]}  Qh4# {[%clk 0:00:59]} 0-1


[Site "https://www.chess.com"]

[Event "Titled Tuesday Blitz May 30 Early 2023"]
[White "Martic, Ivan"]
[Black "Halkias, Stelios"]
[WhiteFideId "929301"]
[BlackFideId "4201809"]
[WhiteElo "2360"]
[BlackElo "2451"]
[Result "0-1"]
[Round "10"]
[TimeControl "180+2"]
[Date "2023.05.30"]
[WhiteClock "0:00:15"]
[BlackClock "0:01:21"]

1. d4 {[%clk 0:02:56]}  Nf6 {[%clk 0:02:58]} 2. Bg5 {[%clk 0:02:55]}  d5 {[%clk 0:02:58]} 3. e3 {[%clk 0:02:54]}  c5 {[%clk 0:02:57]} 4. c3 {[%clk 0:02:53]}  Nc6 {[%clk 0:02:56]} 5. f4 {[%clk 0:02:46]}  Ne4 {[%clk 0:02:55]} 6. Bh4 {[%clk 0:02:45]}  Qb6 {[%clk 0:02:55]} 7. Qb3 {[%clk 0:02:41]}  c4 {[%clk 0:02:51]} 8. Qc2 {[%clk 0:02:29]}  Bf5 {[%clk 0:02:49]} 9. Qc1 {[%clk 0:02:29]}  h6 {[%clk 0:02:46]} 10. Nf3 {[%clk 0:02:28]}  g5 {[%clk 0:02:44]} 11. Bf2 {[%clk 0:02:16]}  Bg7 {[%clk 0:02:35]} 12. Nbd2 {[%clk 0:02:10]}  Nxf2 {[%clk 0:02:30]} 13. Kxf2 {[%clk 0:02:10]}  O-O-O {[%clk 0:02:06]} 14. b3 {[%clk 0:02:05]}  gxf4 {[%clk 0:01:57]} 15. exf4 {[%clk 0:02:01]}  e5 {[%clk 0:01:56]} 16. fxe5 {[%clk 0:01:54]}  Bxe5 {[%clk 0:01:55]} 17. Bxc4 {[%clk 0:01:42]}  Bf4 {[%clk 0:01:44]} 18. Be2 {[%clk 0:01:12]}  Rde8 {[%clk 0:01:42]} 19. Re1 {[%clk 0:01:09]}  Be3+ {[%clk 0:01:39]} 20. Kf1 {[%clk 0:01:09]}  Qc7 {[%clk 0:01:34]} 21. Qb2 {[%clk 0:00:52]}  Rhg8 {[%clk 0:01:31]} 22. b4 {[%clk 0:00:39]}  Bh3 {[%clk 0:01:27]} 23. gxh3 {[%clk 0:00:18]}  Qxh2 {[%clk 0:01:23]} 24. Bd3 {[%clk 0:00:15]}  Qf2# {[%clk 0:01:21]} 0-1


[Site "https://www.chess.com"]

[Event "Titled Tuesday Blitz May 30 Early 2023"]
[White "Uzcategui Rodriguez, Alejandro"]
[Black "Itgelt, Khuyagtsogt"]
[WhiteFideId "3903400"]
[BlackFideId "4902912"]
[WhiteElo "2252"]
[BlackElo "2227"]
[Result "0-1"]
[Round "10"]
[TimeControl "180+2"]
[Date "2023.05.30"]
[WhiteClock "0:00:48"]
[BlackClock "0:00:39"]

1. d4 {[%clk 0:03:00]}  Nf6 {[%clk 0:02:54]} 2. Nf3 {[%clk 0:03:00]}  d5 {[%clk 0:02:49]} 3. c3 {[%clk 0:02:56]}  g6 {[%clk 0:02:47]} 4. Bg5 {[%clk 0:02:55]}  Ne4 {[%clk 0:02:47]} 5. Bf4 {[%clk 0:02:54]}  c5 {[%clk 0:02:48]} 6. e3 {[%clk 0:02:53]}  Nc6 {[%clk 0:02:48]} 7. Nbd2 {[%clk 0:02:53]}  Bf5 {[%clk 0:02:44]} 8. Be2 {[%clk 0:02:52]}  Qb6 {[%clk 0:02:43]} 9. Qb3 {[%clk 0:02:50]}  c4 {[%clk 0:02:42]} 10. Qxb6 {[%clk 0:02:50]}  axb6 {[%clk 0:02:43]} 11. a3 {[%clk 0:02:51]}  f6 {[%clk 0:02:42]} 12. Nxe4 {[%clk 0:02:45]}  Bxe4 {[%clk 0:02:26]} 13. O-O {[%clk 0:02:45]}  b5 {[%clk 0:02:25]} 14. Nd2 {[%clk 0:02:42]}  Bf5 {[%clk 0:02:25]} 15. Bg3 {[%clk 0:02:37]}  h5 {[%clk 0:02:19]} 16. h4 {[%clk 0:02:35]}  Kf7 {[%clk 0:02:08]} 17. Bf3 {[%clk 0:02:34]}  e6 {[%clk 0:02:07]} 18. e4 {[%clk 0:02:34]}  dxe4 {[%clk 0:01:56]} 19. Nxe4 {[%clk 0:02:35]}  Be7 {[%clk 0:01:53]} 20. Nd6+ {[%clk 0:02:34]}  Bxd6 {[%clk 0:01:53]} 21. Bxd6 {[%clk 0:02:35]}  Rhd8 {[%clk 0:01:53]} 22. Bg3 {[%clk 0:02:32]}  Rd7 {[%clk 0:01:53]} 23. Rfe1 {[%clk 0:02:31]}  Ne7 {[%clk 0:01:50]} 24. Be4 {[%clk 0:02:17]}  Bxe4 {[%clk 0:01:49]} 25. Rxe4 {[%clk 0:02:18]}  Nd5 {[%clk 0:01:42]} 26. Rae1 {[%clk 0:02:16]}  Ra6 {[%clk 0:01:43]} 27. f3 {[%clk 0:02:13]}  Rc6 {[%clk 0:01:43]} 28. Kf2 {[%clk 0:02:13]}  Nb6 {[%clk 0:01:44]} 29. R1e2 {[%clk 0:02:09]}  Rd5 {[%clk 0:01:44]} 30. Bh2 {[%clk 0:02:07]}  Nc8 {[%clk 0:01:38]} 31. g4 {[%clk 0:02:07]}  Ne7 {[%clk 0:01:37]} 32. Bf4 {[%clk 0:02:03]}  f5 {[%clk 0:01:33]} 33. Re5 {[%clk 0:02:02]}  Rxe5 {[%clk 0:01:33]} 34. Rxe5 {[%clk 0:02:00]}  Nd5 {[%clk 0:01:33]} 35. Bd2 {[%clk 0:01:56]}  Rc8 {[%clk 0:01:32]} 36. gxf5 {[%clk 0:01:49]}  gxf5 {[%clk 0:01:31]} 37. Bg5 {[%clk 0:01:47]}  Rg8 {[%clk 0:01:30]} 38. Re1 {[%clk 0:01:47]}  Rg6 {[%clk 0:01:29]} 39. Rg1 {[%clk 0:01:44]}  Ke8 {[%clk 0:01:28]} 40. Ra1 {[%clk 0:01:29]}  Kd7 {[%clk 0:01:25]} 41. a4 {[%clk 0:01:27]}  b4 {[%clk 0:01:25]} 42. cxb4 {[%clk 0:01:26]}  Nxb4 {[%clk 0:01:26]} 43. Kg3 {[%clk 0:01:23]}  Kc6 {[%clk 0:01:23]} 44. Re1 {[%clk 0:01:20]}  Nd3 {[%clk 0:01:21]} 45. Re2 {[%clk 0:01:20]}  Kd5 {[%clk 0:01:20]} 46. Rd2 {[%clk 0:01:14]}  Kxd4 {[%clk 0:01:19]} 47. f4 {[%clk 0:01:14]}  Rg8 {[%clk 0:00:55]} 48. Kf3 {[%clk 0:01:11]}  Ra8 {[%clk 0:00:54]} 49. Bf6+ {[%clk 0:01:09]}  Kd5 {[%clk 0:00:54]} 50. Ke3 {[%clk 0:01:03]}  Rxa4 {[%clk 0:00:47]} 51. Rg2 {[%clk 0:01:03]}  Ra1 {[%clk 0:00:43]} 52. Rg5 {[%clk 0:01:02]}  Re1+ {[%clk 0:00:42]} 53. Kd2 {[%clk 0:01:02]}  Ke4 {[%clk 0:00:40]} 54. Rxh5 {[%clk 0:01:01]}  Re2+ {[%clk 0:00:39]} 55. Kc3 {[%clk 0:00:55]}  b5 {[%clk 0:00:40]} 56. Rh8 {[%clk 0:00:49]}  Nxf4 {[%clk 0:00:39]} 57. Bg5 {[%clk 0:00:48]}  Nd5# {[%clk 0:00:39]} 0-1


[Site "https://www.chess.com"]

[Event "Titled Tuesday Blitz May 30 Early 2023"]
[White "Balla, Tamas-Kristof"]
[Black "Shuvalova, Polina"]
[WhiteFideId "1208497"]
[BlackFideId "24171760"]
[WhiteElo "2334"]
[BlackElo "2281"]
[Result "0-1"]
[Round "10"]
[TimeControl "180+2"]
[Date "2023.05.30"]
[WhiteClock "0:00:07"]
[BlackClock "0:01:48"]

1. e4 {[%clk 0:03:00]}  c6 {[%clk 0:03:00]} 2. d4 {[%clk 0:03:00]}  d5 {[%clk 0:03:00]} 3. exd5 {[%clk 0:03:01]}  cxd5 {[%clk 0:03:01]} 4. c4 {[%clk 0:03:01]}  Nf6 {[%clk 0:03:01]} 5. Nc3 {[%clk 0:03:02]}  e6 {[%clk 0:03:01]} 6. Nf3 {[%clk 0:03:02]}  Bb4 {[%clk 0:03:01]} 7. Bd3 {[%clk 0:03:02]}  dxc4 {[%clk 0:03:01]} 8. Bxc4 {[%clk 0:03:03]}  O-O {[%clk 0:03:01]} 9. O-O {[%clk 0:02:58]}  b6 {[%clk 0:03:02]} 10. Bg5 {[%clk 0:02:55]}  Bb7 {[%clk 0:03:01]} 11. Qe2 {[%clk 0:02:55]}  Bxc3 {[%clk 0:02:58]} 12. bxc3 {[%clk 0:02:55]}  Nbd7 {[%clk 0:02:58]} 13. Rac1 {[%clk 0:02:47]}  Qc7 {[%clk 0:02:56]} 14. Bd3 {[%clk 0:02:32]}  Ng4 {[%clk 0:02:54]} 15. Be4 {[%clk 0:02:10]}  Bxe4 {[%clk 0:02:54]} 16. Qxe4 {[%clk 0:02:11]}  Ngf6 {[%clk 0:02:54]} 17. Qd3 {[%clk 0:02:06]}  h6 {[%clk 0:02:53]} 18. Bd2 {[%clk 0:01:59]}  Rfd8 {[%clk 0:02:51]} 19. h3 {[%clk 0:01:57]}  Nc5 {[%clk 0:02:44]} 20. Qe2 {[%clk 0:01:39]}  Nce4 {[%clk 0:02:43]} 21. Ne5 {[%clk 0:01:32]}  Nxd2 {[%clk 0:02:42]} 22. Qxd2 {[%clk 0:01:19]}  Qxe5 {[%clk 0:02:42]} 23. dxe5 {[%clk 0:01:19]}  Rxd2 {[%clk 0:02:43]} 24. exf6 {[%clk 0:01:19]}  gxf6 {[%clk 0:02:41]} 25. a4 {[%clk 0:01:16]}  Rc8 {[%clk 0:02:41]} 26. Rfe1 {[%clk 0:00:58]}  Ra2 {[%clk 0:02:36]} 27. Re4 {[%clk 0:00:55]}  f5 {[%clk 0:02:34]} 28. Rb4 {[%clk 0:00:49]}  Ra3 {[%clk 0:02:30]} 29. c4 {[%clk 0:00:50]}  Rc6 {[%clk 0:02:24]} 30. Rcb1 {[%clk 0:00:39]}  Kg7 {[%clk 0:02:23]} 31. g3 {[%clk 0:00:38]}  Kf6 {[%clk 0:02:21]} 32. Kg2 {[%clk 0:00:38]}  Ra2 {[%clk 0:02:20]} 33. h4 {[%clk 0:00:34]}  h5 {[%clk 0:02:18]} 34. Rd1 {[%clk 0:00:31]}  a5 {[%clk 0:02:17]} 35. Rb5 {[%clk 0:00:26]}  Rxa4 {[%clk 0:02:17]} 36. Rdb1 {[%clk 0:00:26]}  Raxc4 {[%clk 0:02:15]} 37. Rxb6 {[%clk 0:00:27]}  Rxb6 {[%clk 0:02:15]} 38. Rxb6 {[%clk 0:00:28]}  a4 {[%clk 0:02:11]} 39. Ra6 {[%clk 0:00:28]}  Ke5 {[%clk 0:02:10]} 40. Kf3 {[%clk 0:00:24]}  Kd5 {[%clk 0:01:58]} 41. Ra7 {[%clk 0:00:23]}  Kc5 {[%clk 0:01:53]} 42. Rxf7 {[%clk 0:00:20]}  a3 {[%clk 0:01:52]} 43. Ra7 {[%clk 0:00:19]}  Kb4 {[%clk 0:01:52]} 44. Ra6 {[%clk 0:00:16]}  Kb3 {[%clk 0:01:51]} 45. Rxe6 {[%clk 0:00:06]}  a2 {[%clk 0:01:51]} 46. Ra6 {[%clk 0:00:07]}  Ra4 {[%clk 0:01:48]} 47. Rb6+ {[%clk 0:00:07]} 0-1


[Site "https://www.chess.com"]

[Event "Titled Tuesday Blitz May 30 Early 2023"]
[White "Goryachkina, Aleksandra"]
[Black "Fernandez Garcia, Gumersindo"]
[WhiteFideId "4147103"]
[BlackFideId "24516740"]
[WhiteElo "2471"]
[BlackElo "2093"]
[Result "0-1"]
[Round "10"]
[TimeControl "180+2"]
[Date "2023.05.30"]
[WhiteClock "0:00:00"]
[BlackClock "0:00:11"]

1. Nf3 {[%clk 0:03:00]}  Nf6 {[%clk 0:02:59]} 2. c4 {[%clk 0:02:58]}  g6 {[%clk 0:02:56]} 3. g3 {[%clk 0:02:56]}  Bg7 {[%clk 0:02:57]} 4. Bg2 {[%clk 0:02:57]}  O-O {[%clk 0:02:58]} 5. O-O {[%clk 0:02:57]}  d6 {[%clk 0:02:58]} 6. d4 {[%clk 0:02:55]}  Nbd7 {[%clk 0:02:59]} 7. Nc3 {[%clk 0:02:55]}  e5 {[%clk 0:02:58]} 8. e4 {[%clk 0:02:54]}  exd4 {[%clk 0:02:58]} 9. Nxd4 {[%clk 0:02:54]}  Re8 {[%clk 0:02:59]} 10. Re1 {[%clk 0:02:54]}  a6 {[%clk 0:02:59]} 11. h3 {[%clk 0:02:51]}  Rb8 {[%clk 0:02:58]} 12. Rb1 {[%clk 0:02:31]}  c5 {[%clk 0:02:47]} 13. Nc2 {[%clk 0:02:30]}  b5 {[%clk 0:02:48]} 14. Qxd6 {[%clk 0:02:22]}  Rb6 {[%clk 0:02:38]} 15. Qd1 {[%clk 0:02:09]}  bxc4 {[%clk 0:02:36]} 16. Ne3 {[%clk 0:02:09]}  Ne5 {[%clk 0:02:28]} 17. Qxd8 {[%clk 0:02:08]}  Rxd8 {[%clk 0:02:28]} 18. f4 {[%clk 0:02:08]}  Nd3 {[%clk 0:02:28]} 19. Rd1 {[%clk 0:02:08]}  Rbd6 {[%clk 0:02:11]} 20. Nxc4 {[%clk 0:02:06]}  Rd4 {[%clk 0:02:11]} 21. Ne3 {[%clk 0:01:46]}  Nh5 {[%clk 0:01:45]} 22. Ne2 {[%clk 0:01:30]}  Nxc1 {[%clk 0:01:15]} 23. Rbxc1 {[%clk 0:01:27]}  Rxd1+ {[%clk 0:01:13]} 24. Rxd1 {[%clk 0:01:27]}  Rxd1+ {[%clk 0:01:11]} 25. Nxd1 {[%clk 0:01:27]}  a5 {[%clk 0:01:12]} 26. g4 {[%clk 0:01:21]}  Ba6 {[%clk 0:01:08]} 27. Kf2 {[%clk 0:00:35]}  Bxe2 {[%clk 0:01:05]} 28. Kxe2 {[%clk 0:00:36]}  Nxf4+ {[%clk 0:01:05]} 29. Kf3 {[%clk 0:00:37]}  Nd3 {[%clk 0:01:02]} 30. b3 {[%clk 0:00:36]}  Nc1 {[%clk 0:01:01]} 31. Bf1 {[%clk 0:00:32]}  Nxa2 {[%clk 0:01:01]} 32. Bc4 {[%clk 0:00:31]}  Nb4 {[%clk 0:01:00]} 33. Ne3 {[%clk 0:00:31]}  Bd4 {[%clk 0:00:55]} 34. Nd5 {[%clk 0:00:24]}  Nc6 {[%clk 0:00:53]} 35. Bb5 {[%clk 0:00:24]}  Ne5+ {[%clk 0:00:52]} 36. Ke2 {[%clk 0:00:24]}  Kg7 {[%clk 0:00:52]} 37. Ne7 {[%clk 0:00:23]}  Kf6 {[%clk 0:00:45]} 38. Nc6 {[%clk 0:00:23]}  Kg5 {[%clk 0:00:35]} 39. Nxe5 {[%clk 0:00:21]}  Bxe5 {[%clk 0:00:36]} 40. Kf3 {[%clk 0:00:21]}  Kh4 {[%clk 0:00:30]} 41. Kg2 {[%clk 0:00:22]}  Bd4 {[%clk 0:00:30]} 42. Bc4 {[%clk 0:00:21]}  f6 {[%clk 0:00:29]} 43. Bg8 {[%clk 0:00:21]}  h6 {[%clk 0:00:30]} 44. Bf7 {[%clk 0:00:21]}  Kg5 {[%clk 0:00:30]} 45. Kf3 {[%clk 0:00:21]}  h5 {[%clk 0:00:31]} 46. Be8 {[%clk 0:00:18]}  h4 {[%clk 0:00:30]} 47. Bf7 {[%clk 0:00:18]}  Kh6 {[%clk 0:00:30]} 48. Be8 {[%clk 0:00:18]}  g5 {[%clk 0:00:30]} 49. Bb5 {[%clk 0:00:17]}  Kg7 {[%clk 0:00:31]} 50. Bc4 {[%clk 0:00:17]}  Kf8 {[%clk 0:00:31]} 51. Bb5 {[%clk 0:00:16]}  Ke7 {[%clk 0:00:31]} 52. Bc4 {[%clk 0:00:15]}  Kd6 {[%clk 0:00:32]} 53. Bb5 {[%clk 0:00:14]}  Ke5 {[%clk 0:00:32]} 54. Bc4 {[%clk 0:00:15]}  Bb2 {[%clk 0:00:32]} 55. Bf7 {[%clk 0:00:07]}  Kd4 {[%clk 0:00:32]} 56. Bg8 {[%clk 0:00:07]}  Bc1 {[%clk 0:00:31]} 57. Bf7 {[%clk 0:00:06]}  Kc3 {[%clk 0:00:31]} 58. Ke2 {[%clk 0:00:06]}  Bf4 {[%clk 0:00:31]} 59. Be6 {[%clk 0:00:06]}  Be5 {[%clk 0:00:31]} 60. Bf7 {[%clk 0:00:06]}  Kd4 {[%clk 0:00:29]} 61. Kf3 {[%clk 0:00:05]}  Kd3 {[%clk 0:00:28]} 62. Bg8 {[%clk 0:00:04]}  a4 {[%clk 0:00:20]} 63. bxa4 {[%clk 0:00:03]}  c4 {[%clk 0:00:21]} 64. a5 {[%clk 0:00:01]}  c3 {[%clk 0:00:21]} 65. Bb3 {[%clk 0:00:01]}  c2 {[%clk 0:00:21]} 66. Bxc2+ {[%clk 0:00:01]}  Kxc2 {[%clk 0:00:22]} 67. a6 {[%clk 0:00:02]}  Bb8 {[%clk 0:00:19]} 68. e5 {[%clk 0:00:01]}  fxe5 {[%clk 0:00:14]} 69. Ke4 {[%clk 0:00:01]}  Kd2 {[%clk 0:00:12]} 70. Kf5 {[%clk 0:00:02]}  Kd3 {[%clk 0:00:10]} 71. Kxg5 {[%clk 0:00:02]}  e4 {[%clk 0:00:10]} 72. Kh5 {[%clk 0:00:00]}  e3 {[%clk 0:00:11]} 0-1


[Site "https://www.chess.com"]

[Event "Titled Tuesday Blitz May 30 Early 2023"]
[White "Begunov, Konstantin"]
[Black "Agibileg, Uurtsaikh"]
[WhiteFideId "4118510"]
[BlackFideId "4901606"]
[WhiteElo "2050"]
[BlackElo "2353"]
[Result "0-1"]
[Round "10"]
[TimeControl "180+2"]
[Date "2023.05.30"]
[WhiteClock "0:00:15"]
[BlackClock "0:02:20"]

1. d4 {[%clk 0:02:56]}  Nf6 {[%clk 0:02:59]} 2. c4 {[%clk 0:02:55]}  g6 {[%clk 0:02:59]} 3. f3 {[%clk 0:02:55]}  Bg7 {[%clk 0:02:57]} 4. e4 {[%clk 0:02:55]}  O-O {[%clk 0:02:58]} 5. Nc3 {[%clk 0:02:56]}  d6 {[%clk 0:02:56]} 6. Be3 {[%clk 0:02:56]}  e5 {[%clk 0:02:56]} 7. Nge2 {[%clk 0:02:55]}  a6 {[%clk 0:02:56]} 8. Qd2 {[%clk 0:02:55]}  b5 {[%clk 0:02:55]} 9. cxb5 {[%clk 0:02:54]}  axb5 {[%clk 0:02:56]} 10. Nxb5 {[%clk 0:02:54]}  Nc6 {[%clk 0:02:45]} 11. d5 {[%clk 0:02:52]}  Na5 {[%clk 0:02:45]} 12. Nec3 {[%clk 0:02:49]}  Nb3 {[%clk 0:02:44]} 13. Qd1 {[%clk 0:02:29]}  Nxa1 {[%clk 0:02:44]} 14. Qxa1 {[%clk 0:02:30]}  Nh5 {[%clk 0:02:42]} 15. Be2 {[%clk 0:02:05]}  Nf4 {[%clk 0:02:42]} 16. g3 {[%clk 0:01:47]}  Nxe2 {[%clk 0:02:41]} 17. Kxe2 {[%clk 0:01:48]}  Ba6 {[%clk 0:02:38]} 18. a4 {[%clk 0:01:43]}  c6 {[%clk 0:02:29]} 19. dxc6 {[%clk 0:01:39]}  d5 {[%clk 0:02:30]} 20. exd5 {[%clk 0:01:26]}  Bxb5+ {[%clk 0:02:28]} 21. Nxb5 {[%clk 0:01:22]}  Qxd5 {[%clk 0:02:28]} 22. Rc1 {[%clk 0:01:12]}  e4 {[%clk 0:02:25]} 23. f4 {[%clk 0:00:55]}  Qh5+ {[%clk 0:02:22]} 24. Kf1 {[%clk 0:00:19]}  Qf3+ {[%clk 0:02:21]} 25. Bf2 {[%clk 0:00:18]}  e3 {[%clk 0:02:21]} 26. Rc2 {[%clk 0:00:15]}  exf2 {[%clk 0:02:20]} 0-1


[Site "https://www.chess.com"]